Cogmind - Beta 10.2 @@@ ROGUE MODE // 2020.11.09 @ 19:16:36 // Halloween2020/ForbiddenLore Player: WayneKnight Result: Self-destructed Performance ------------- Evolutions (1) 500 Regions Visited (3) 600 Robots Destroyed (66) 330 Value Destroyed (1718) 1718 Prototype IDs (1) 20 Alien Tech Used (0) 0 Bonus (35) 35 TOTAL SCORE: 3203 Bonus ------- High Alert Combat Kills 35 Cogmind --------- Core Integrity 57/400 Matter 300/300 Energy 265/265 System Corruption 0% Temperature Cool (0) Movement Treading (180) Ox1 Location -9/Materials Parts ------- > --- POWER (1) -------- Reinforced Ion Engine > --- PROPULSION (3) --- Light Treads Light Treads Light Treads > --- UTILITY (3) ------ High-capacity Storage Unit High-capacity Storage Unit High-capacity Storage Unit > --- WEAPON (2) ------- Beam Rifle Heavy Assault Rifle > --- INVENTORY (28) --- Ion Engine Light Ion Engine Improved Ion Engine Light Treads Light Treads Light Treads Light Treads Light Treads Light Treads Light Treads Improved Aluminum Leg Improved Aluminum Leg Compact Wheel Small Storage Unit Large Storage Unit Large Storage Unit Large Storage Unit Large Storage Unit Advanced Targeting Computer Light Armor Plating Improved Light Armor Plating Improved Light Armor Plating Beam Rifle Shotgun Shotgun Grenade Launcher Rocket Launcher Maul Peak State ------------ > --- POWER ------------ Improved Ion Engine > --- PROPULSION ------- Light Treads Improved Aluminum Leg Improved Aluminum Leg > --- UTILITY ---------- High-capacity Storage Unit High-capacity Storage Unit High-capacity Storage Unit > --- WEAPON ----------- Improved Medium Laser Autogun > --- INVENTORY -------- Ion Engine Light Ion Engine Light Treads Compact Wheel Small Storage Unit Large Storage Unit Large Storage Unit Large Storage Unit Large Storage Unit Beam Rifle Beam Rifle Autogun Shotgun Shotgun Grenade Launcher Hammer [Rating: 17] Favorites ----------- Power Ion Engine Engine Ion Engine Propulsion Light Treads Treads Light Treads Leg Improved Aluminum Leg Wheel Compact Wheel Utility High-capacity Storage Unit Storage High-capacity Storage Unit Weapon Autogun Energy Gun Improved Medium Laser Ballistic Gun Autogun Build | -11 -10 -10 -9 ------- Run | Scr Mat Min Mat Slots Evolved 2 | . . . 2 Power . | . . . . Propulsion 1 | . . . 1 Utility 1 | . . . 1 Weapon . | . . . . Parts Attached 43 | 1 12 3 27 Power 3 | . 1 . 2 Engine 3 | . 1 . 2 Core . | . . . . Reactor . | . . . . Propulsion 20 | . 5 2 13 Treads 15 | . 4 2 9 Leg 4 | . . . 4 Wheel 1 | . 1 . . Hover . | . . . . Flight . | . . . . Utility 7 | 1 2 . 4 Device . | . . . . Storage 7 | 1 2 . 4 Processor . | . . . . Hackware . | . . . . Protection . | . . . . Artifact . | . . . . Weapon 13 | . 4 1 8 Energy Gun 2 | . . . 2 Energy Cannon . | . . . . Ballistic Gun 11 | . 4 1 6 Ballistic Cannon . | . . . . Launcher . | . . . . Special Weapon . | . . . . Impact Weapon . | . . . . Slashing Weapon . | . . . . Piercing Weapon . | . . . . Special Melee Weapon . | . . . . Unidentified Prototypes 1 | . . . 1 Parts Lost 7 | . . 3 4 Power . | . . . . Propulsion 3 | . . 2 1 Utility . | . . . . Weapon 4 | . . 1 3 Highest Loss Streak 3 | . . 3 1 Average Slot Usage (%) 99 | . 100 99 99 Engine 12 | . 14 14 11 Treads 24 | . 20 27 26 Leg 2 | . . . 6 Wheel 2 | . 7 . . Storage 30 | . 28 28 33 Energy Gun 1 | . . . 3 Ballistic Gun 23 | . 28 28 18 Naked Turns . | . . . . Heaviest Build 112 | 15 43 43 112 Greatest Support 60 | 20 40 40 60 Greatest Overweight (x) 5 | . 2 1 5 Average Overweight (x) 1 | . . 1 1 Largest Inventory Capacity 28 | 8 16 16 28 Average Capacity 20 | 6 11 16 27 Most Carried 28 | 6 13 14 28 Average Carried 15 | 6 8 13 21 Final Capacity 28 | 8 16 16 28 Final Carried 28 | 6 13 11 28 Class Distribution -------------------- 52% | Mutant 47% | Hauler-Mutant Dominant Class ---------------- Mutant | -10/Materials Mutant | -10/Mines Hauler-Mutant | -9/Materials Resources | -11 -10 -10 -9 ----------- Run | Scr Mat Min Mat Matter Collected 1854 | 234 458 175 987 Remotely . | . . . . Salvage Created 2299 | 50 636 177 1436 Parts 132 | 2 36 8 86 Haulers Intercepted 3 | . 2 . 1 Recyclers Shooed 3 | . 1 . 2 Parts Field Recycled . | . . . . Retrieved Matter . | . . . . Parts Self-Destructed . | . . . . Prevented . | . . . . Kills | -11 -10 -10 -9 ------- Run | Scr Mat Min Mat Combat Hostiles Destroyed 51 | . 13 5 33 Guns 51 | . 13 5 33 Classes Destroyed 11 | 1 8 . 2 Worker 1 | . 1 . . Builder 1 | . 1 . . Tunneler 1 | . 1 . . Hauler 3 | . 2 . 1 Recycler 1 | 1 . . . Operator 2 | . 1 . 1 Watcher 6 | . 2 . 4 Swarmer 13 | . 6 . 7 Grunt 27 | . 7 4 16 Brawler 1 | . . . 1 Sentry 9 | . . . 9 Best Kill Streak 6 | 1 4 2 6 Combat Bots Only 6 | . 3 2 6 Max Kills in Single Turn 2 | 1 2 2 2 Gunslinging 1 | . . 1 1 Exploded . | . . . . Melee . | . . . . Uniques/NPCs Destroyed 1 | . . 1 . YI-UF0 (-10/Mines) Combat | -11 -10 -10 -9 -------- Run | Scr Mat Min Mat Damage Taken 2617 | . 319 599 1699 Core 483 | . 45 95 343 Absorbed by Shields . | . . . . Core Remaining (%) 72 | 100 . 44 . Volleys Fired 194 | 4 48 20 122 Largest 2 | 2 2 2 2 Hottest 79 | 40 46 46 79 Shots Fired 382 | 8 96 40 238 Gun 382 | 8 96 40 238 Cannon . | . . . . Launcher . | . . . . Special . | . . . . Kinetic 363 | 8 96 40 219 Thermal 19 | . . . 19 Explosive . | . . . . Electromagnetic . | . . . . Robot Hit Streak 18 | 3 11 4 18 Robot Miss Streak 5 | 2 5 3 4 Penetration Max . | . . . . Secondary Targets 9 | . 2 2 5 Max Gunslinging Chain 1 | . 1 1 1 Shots Hit Robots 252 | 5 57 25 165 Core Hits 99 | 1 28 10 60 Critical Hits . | . . . . Critical Kills . | . . . . Critical Parts Destroyed . | . . . . Melee Attacks . | . . . . Impact . | . . . . Slashing . | . . . . Piercing . | . . . . Sneak Attacks . | . . . . Combat Hostiles . | . . . . Follow-up Attacks . | . . . . Damage Inflicted 3942 | 71 827 409 2635 Guns 3812 | 71 818 376 2547 Cannons . | . . . . Explosions . | . . . . Melee . | . . . . Ramming 130 | . 9 33 88 Kinetic 3628 | 71 818 376 2363 Thermal 184 | . . . 184 Explosive . | . . . . Electromagnetic . | . . . . Impact . | . . . . Slashing . | . . . . Piercing . | . . . . Highest Corruption . | . . . . Average Corruption . | . . . . Corruption Purged . | . . . . Overload Shots . | . . . . Overflow Damage . | . . . . Projectiles . | . . . . Explosions . | . . . . Melee . | . . . . Knockbacks 1 | . . . 1 Impact 1 | . . . 1 Kinetic . | . . . . Secondary . | . . . . Self-Inflicted Damage . | . . . . Shots . | . . . . Rammed 12 | . 2 6 4 Targets Rammed 13 | . 2 6 5 Kicked 1 | . . . 1 Crushed . | . . . . Highest Temperature 228 | . 24 41 228 Average Temperature 25 | . 9 11 34 Received Heat Transfer 861 | . 105 90 666 Siege Activations . | . . . . Robots Corrupted . | . . . . Combat Hostiles . | . . . . Parts Fried . | . . . . Impact Corruptions . | . . . . Robots Melted . | . . . . Combat Hostiles . | . . . . Parts Melted . | . . . . Heat Transferred 407 | . . . 407 Parts Sabotaged . | . . . . Parts Stolen . | . . . . Parts Stripped . | . . . . Power Chain Reactions . | . . . . Missiles Intercepted . | . . . . Alert | -11 -10 -10 -9 ------- Run | Scr Mat Min Mat Peak Influence 484 | 5 161 81 484 Initial 31 | . 3 31 . Average 80 | 2 67 26 114 Maximum Alert Level 2 | . . . 2 Low Security (%) 88 | 100 100 100 76 Level 1 9 | . . . 20 Level 2 1 | . . . 2 Level 3 . | . . . . Level 4 . | . . . . Level 5 . | . . . . High Security . | . . . . Max Security . | . . . . Squads Dispatched 6 | . 2 . 4 Investigation . | . . . . Extermination . | . . . . Reinforcement 6 | . 2 . 4 Assault . | . . . . Garrison . | . . . . Intercept . | . . . . Construction Impeded . | . . . . Haulers Reinforced . | . . . . Stealth | -11 -10 -10 -9 --------- Run | Scr Mat Min Mat Distress Signals 5 | . 2 . 3 Communications Jammed . | . . . . Distress Signals . | . . . . Times Spotted 71 | . 17 5 49 Peak Tracking Total 6 | . 3 2 6 Tactical Retreats 1 | . . . 1 Traps | -11 -10 -10 -9 ------- Run | Scr Mat Min Mat Traps Triggered 1 | . . . 1 Indirectly . | . . . . Trap Hack Attempts . | . . . . Triggered . | . . . . Disarmed . | . . . . Reprogrammed . | . . . . Reused . | . . . . Traps Extracted . | . . . . Installed . | . . . . Triggered . | . . . . Machines | -11 -10 -10 -9 ---------- Run | Scr Mat Min Mat Machines Disabled 1 | . . . 1 Max in Single Turn 1 | . . . 1 Machines Sabotaged . | . . . . Garrisons Compromised . | . . . . Overloaded Fab Kills . | . . . . Fab Network Shutdowns . | . . . . Hacking | -11 -10 -10 -9 --------- Run | Scr Mat Min Mat Machines Accessed 14 | . 7 . 7 Terminals 10 | . 6 . 4 Fabricators . | . . . . Repair Stations 1 | . . . 1 Recycling Units 2 | . 1 . 1 Scanalyzers 1 | . . . 1 Garrison Access . | . . . . Total Hacks 42 | . 19 . 23 Successful 27 | . 9 . 18 Failed 15 | . 10 . 5 Catastrophic . | . . . . Database Lockouts . | . . . . Manual 24 | . 14 . 10 Terminals 29 | . 15 . 14 Fabricators . | . . . . Repair Stations 4 | . . . 4 Recycling Units 5 | . 4 . 1 Scanalyzers 4 | . . . 4 Garrison Access . | . . . . Terminal Hacks 6 | . 1 . 5 Robot Analysis 3 | . . . 3 Locate Traps 2 | . . . 2 Zone Layout 1 | . 1 . . Fabricator Hacks . | . . . . Repair Station Hacks 4 | . . . 4 Scan Component 2 | . . . 2 Repair 2 | . . . 2 Recycling Unit Hacks 4 | . 3 . 1 Report Inventory 3 | . 2 . 1 Retrieve Components 1 | . 1 . . Scanalyzer 4 | . . . 4 Insert Component 2 | . . . 2 Analyze 2 | . . . 2 Garrison Access Hacks . | . . . . Unauthorized Hacks 9 | . 5 . 4 Terminals 9 | . 5 . 4 Assimilate 2 | . 1 . 1 Botnet 5 | . 3 . 2 Operators 2 | . 1 . 1 Fabricators . | . . . . Repair Stations . | . . . . Recycling Units . | . . . . Scanalyzers . | . . . . Garrison Access . | . . . . Data Cores Recovered . | . . . . Used . | . . . . Hacking Detections 13 | . 7 . 6 Full Trace Events 1 | . . . 1 Feedback Events . | . . . . Feedback Blocked . | . . . . Robot Schematics Acquired . | . . . . Robots Built . | . . . . Matter . | . . . . Time . | . . . . Total Robot Build Rating . | . . . . Part Schematics Acquired 2 | . . . 2 Parts Built . | . . . . Matter . | . . . . Time . | . . . . Total Part Build Rating . | . . . . Parts Repaired 2 | . . . 2 Time 52 | . . . 52 Parts Recycled . | . . . . Recycled Matter . | . . . . Retrieved Matter . | . . . . Retrieved Components 2 | . 2 . . Parts Scanalyzed 2 | . . . 2 Part Schematics Acquired 2 | . . . 2 Parts Damaged . | . . . . Bothacking | -11 -10 -10 -9 ------------ Run | Scr Mat Min Mat Used RIF Installer . | . . . . Robots Hacked . | . . . . Non-combat . | . . . . Combat . | . . . . Robot Hacks Applied . | . . . . Relay Couplers Released . | . . . . Robots Rewired . | . . . . Allies Hacked . | . . . . Hacks Repelled . | . . . . Allies | -11 -10 -10 -9 -------- Run | Scr Mat Min Mat Total Allies 2 | . 1 . 1 Largest Group 1 | . 1 1 1 Highest-Rated Group 10 | . 10 10 10 Highest-Rated Ally 10 | . 10 10 10 Total Orders . | . . . . Ally Attacks . | . . . . Total Damage . | . . . . Kills . | . . . . Allies Corrupted . | . . . . Allies Melted . | . . . . Intel | -11 -10 -10 -9 ------- Run | Scr Mat Min Mat Robot Analysis Total 3 | . . . 3 Derelict Logs Recovered 1 | . . 1 . Drone Launches . | . . . . Drone Recoveries . | . . . . Exploration | -11 -10 -10 -9 ------------- Run | Scr Mat Min Mat Turns Passed 6477 | 25 1993 1407 3052 Spaces Moved 2549 | 10 827 667 1045 Core . | . . . . Treads 2019 | . 467 667 885 Legs 170 | 10 . . 160 Wheels 360 | . 360 . . Hover . | . . . . Flight . | . . . . Fastest Speed 110 | 120 110 180 180 Average Speed 171 | 120 144 180 187 Slowest Speed 260 | 120 180 180 260 Overloaded Moves . | . . . . Propulsion Burnouts . | . . . . Robots Hopped . | . . . . Cave-ins Triggered . | . . . . Exploration Rate (%) 68 | 2 99 98 73 Regions Visited 3 Branch Regions 1 Pre-discovered Areas 1 | . . 1 . Known Exits Taken . | . . . . Unknown Exits Taken 3 | 1 1 1 . Scrap Searched . | . . . . Spaces Dug . | . . . . Terrain Destroyed . | . . . . Melee . | . . . . Projectile . | . . . . AOE . | . . . . Terrain Rammed . | . . . . Walls Destroyed . | . . . . Machines Disabled . | . . . . Actions | -11 -10 -10 -9 --------- Run | Scr Mat Min Mat Total 4308 | 14 1546 837 1911 Wait 1461 | . 630 141 690 Move 2546 | 9 826 666 1045 Hop . | . . . . Pick Up 31 | . 15 1 15 Fast Attach 5 | 1 . . 4 Attach 9 | . . 3 6 Detach 3 | . . . 3 Swap 29 | . 12 . 17 Drop 17 | . 13 . 4 Fire 194 | 4 48 20 122 Melee . | . . . . Ram . | . . . . Kick 1 | . . . 1 Crush 12 | . 2 6 4 Escape Stasis . | . . . . Rewire . | . . . . Trap . | . . . . Miscellaneous . | . . . . Route ------- -11/Scrapyard -10/Materials (discovered 4 exits: *Mat x3 / [*Min]) -10/Mines (discovered 2 exits: *Mat x2) -9/Materials (discovered 4 exits: [*Mat x3] / [*Min]) History --------- Turn | Location | Event 1 | -11/Scrapyard | Discovered new exit (range 3) 26 | -11/Scrapyard | Entered Materials 300 | -10/Materials | Build established: Mutant 410 | -10/Materials | Discovered new exit (range 12) 688 | -10/Materials | Discovered new exit (range 11) 882 | -10/Materials | Discovered new exit (range 6) 1454 | -10/Materials | Discovered new exit (range 8) 2019 | -10/Materials | Entered Mines 2019 | -10/Mines | Accompanied by 1 ally 2020 | -10/Mines | Learned location of Storage (-7) 2171 | -10/Mines | YI-UF0 nonchalantly dropped a Grenade Launcher on the ground 2321 | -10/Mines | Learned Materials security intel 2430 | -10/Mines | Assembled infested the area 2435 | -10/Mines | Assisted by a Guerilla fighting off Assembled 2762 | -10/Mines | Discovered new exit (range 11) 2828 | -10/Mines | Discovered new exit (range 7) 3015 | -10/Mines | Core integrity fell below 50% 3020 | -10/Mines | Destroyed YI-UF0 3049 | -10/Mines | Lost 3 parts (2n1w) 3426 | -10/Mines | Entered Materials 3426 | -9/Materials | Evolved 2 slots: Propulsion x1, Utility x1 3723 | -9/Materials | Build established: Hauler-Mutant 4784 | -9/Materials | Discovered new exit (range 11) 5241 | -9/Materials | Discovered new exit (range 9) 5448 | -9/Materials | Discovered new exit (range 15) 5884 | -9/Materials | Repaired Lgt. Treads 5911 | -9/Materials | Repaired Lgt. Treads 6171 | -9/Materials | Discovered new exit (range 8) 6251 | -9/Materials | Core integrity fell below 50% 6393 | -9/Materials | Core integrity fell below 20% 6478 | -9/Materials | Self-destructed Last Messages --------------- 06390_ Technician 2a reports 0b10 security level has risen to 2. 06391_ R-06 Scavenger collects Aluminum Leg. 06392_ U-05 Engineer lays Concrete. 06394_ R-06 Scavenger collects Ion Engine. 06395_ G-34 Mercenary destroyed. 06395_ Switching to secondary target: G-34 Mercenary. 06398_ G-34 Mercenary destroyed. 06403_ U-05 Engineer lays Concrete. 06406_ R-06 Scavenger collects Ion Engine. 06407_ Acquired 58 matter. 06409_ R-06 Scavenger collects Aluminum Leg. 06412_ R-06 Scavenger collects Ion Engine. 06416_ Acquired 42 matter. 06423_ Hvy. Assault Rifle destroyed. 06427_ Acquired 14 matter. 06429_ Y-45 Defender destroyed. 06430_ Acquired 3 matter. 06455_ O-16 Technician destroyed. 06458_ Acquired 11 matter. 06471_ Acquired 2 matter. Map ----- +----------------------------------------------------+ | | | ????????????????????????????????????????? | | ????????????????????????????????????????? | | ????????????????????????????????????????? | | ????????????????????????????????????????? | | ????????????????????????????????????????? | | ????????????????????????????????????????? | | ????????????????????????????????????????? | | ????????????????????????????????????????? | | ????????????????????????????????????????? | | ????????????????????????????????????????? | | ?????????????????????o??????????????????? | | ????????????????????????????????????????? | | ????????????????????????????????????????? | | ????????????????????????????????????????? | | ????????????????????????????????????????? | | ????????????????????????????????????????? | | ??????????????o?????????? ??????????????? | | #####???????????????????#+#?????????????? | | #???????????????????# #?????????????? | | #???????????????????# #?????????????? | | #???????????????????# #?????????????? | | #???????????????????# #?????????????? | | #???????????????????#* ?????????????? | | #???????????????????#%#?????????????? | | #???????????????????#@#?##########??? | | #???????????????????# #?# #??? | | #?????? ????????????#o#?# ! "#??? | | #####?????? ????????????#%### "#??? | | #??????? ????????????#!=*# ! """ "#??? | | ! #??????? ????????????#%! + """ T#??? | | #?????##+#???????????#[ # """ "#??? | | #?????? ???????????# # """ "#??? | | #?????? ???????????# # """ "???? | | ####?????? ???????????# # ???? | | #?????????# #???????????# #######+#???? | | #?????????#/######??????# ! ####### #???? | | ??????????#% #? ???#= #???? | | ??????????# # ???# ####### #???? | | ??????????# %""" + ????# =[#?????# #???? | | ??????????# """ # ?????#!=%#?????# #???? | | ??????????# "" # ????#% %#???###+####? | | ??????????# %# #### =##### #? | | ??????????#####+## #[[ #? | | ??????????????# ## < #[[ #? | | ??????????????# ## #[[ =[ #? | | ??????????????# ######### ######## ###? | | ??????????????# #???????# # ###??? | | ??????????????# ######### # """ #????? | | ??????????????# ## + + """ #????? | +----------------------------------------------------+ Best States ------------- Heat Dissipation 28 Energy Generation 12 Energy Capacity 265 Matter Stores 300 Matter Capacity 300 Sight Range 16 Terrain Scan Density 10 Evasion (%) 40 Recoil Reduction 3 Item Schematics ----------------- Lrg. Storage Unit | -9/Materials | Scanalyzed Grenade Launcher | -9/Materials | Scanalyzed Robot Schematics ------------------ None Fabricated ------------ Nothing Alien Tech Used ----------------- None Achievements -------------- None Challenges ------------ None Game ------ Seed GatlingSegregatorDevice Manual? 0 Play Time 00:33:19 Cumulative 105.6 hours Start 2020.11.09 @ 18:50:12 End 2020.11.09 @ 19:16:36 Sessions 1 Manual Loads 0 Difficulty Rogue Special Mode Halloween2020/ForbiddenLore Game No. 87 Rogue 87 Adventurer 0 Explorer 0 Win Type - Total 2 Types 2/0/0/0/0/0/0/0/0 Lore% 42 Gallery% 54 Achievement% 41 Wizard Run 0 Options --------- ASCII 1 Keyboard 1 Movement Arrows Keybinds 0 Fullscreen 1 Font 24/Proggy Map View 76x50 Tactical HUD 1 Map Filters NONE Filters NONE Steam 1 RUN: 5258077a-c7c8-4c91-8992-24dfd885f865